fUST/lending_fUST_20240905
["ID","MTS","AMOUNT","RATE_DAILY","PERIOD"]
[337178019,1725490261328,-150.112233,0.000237,4]
[337178020,1725490261339,-150.112233,0.000237,5]
[337178021,1725490261350,-150.112233,0.000237,2]
[337178022,1725490261360,-150.112233,0.000237,3]
[337178023,1725490261370,-232.035079,0.000237,3]
[337178024,1725490261382,-9036.84,0.00023729,2]
[337178025,1725490261392,-1532.82,0.00023729,2]
[337178026,1725490261403,-500.0,0.00023729,2]
[337178027,1725490261415,-500.0,0.00023729,2]
[337178028,1725490261428,-500.0,0.00023729,2]
[337178029,1725490261440,-626.22,0.00023729,2]
[337178030,1725490261450,-1069.76,0.00023729,2]
[337178031,1725490261463,-500.0,0.00023729,2]
[337178032,1725490261475,-1205.5,0.00023729,2]
[337178033,1725490261486,-500.0,0.00023729,2]
[337178034,1725490261498,-1549.83,0.00023729,2]
[337178035,1725490261509,-1523.74,0.00023729,2]
[337178036,1725490261521,-16098.97,0.00023729,2]
[337178037,1725490261532,-682.43,0.00023729,2]
[337178038,1725490261542,-4724.69,0.00023729,2]
[337178039,1725490261552,-1701.22,0.00023729,2]
[337178040,1725490261564,-1308.33,0.00023729,2]
[337178041,1725490261575,-500.0,0.0002373,2]
[337178042,1725490261587,-2273.210036,0.0002373,7]
[337178043,1725490261599,-2273.210036,0.0002373,7]
[337178044,1725490261609,-868.21,0.0002373,2]
[337178045,1725490261620,-1063.35,0.0002373,2]
[337178046,1725490261630,-748.75,0.00023743,2]
[337178047,1725490261640,-8663.32,0.00023743,2]
[337178048,1725490261650,-3403.05,0.00023743,2]
[337178049,1725490261659,-1248.07,0.00023743,2]
[337178050,1725490261669,-1106.85,0.00023743,2]
[337178051,1725490261679,-1052.87,0.00023743,2]
[337178052,1725490261688,-500.0,0.00023743,2]
[337178053,1725490261698,-5212.29,0.00023743,2]
[337178054,1725490261708,-1460.49,0.00023743,2]
[337178055,1725490261718,-754.96,0.00023743,2]
[337178056,1725490261727,-1573.67,0.00023743,2]
[337178057,1725490261737,-8393.46,0.00023743,2]
[337178058,1725490261747,-7312.31,0.00023743,2]
[337178059,1725490261757,-1341.54,0.00023743,2]
[337178060,1725490261767,-1657.26,0.00023743,2]
[337178061,1725490261777,-500.0,0.00023744,2]
[337178062,1725490261786,-500.0,0.00023744,2]
[337178063,1725490261798,-500.0,0.00023744,2]
[337178064,1725490261807,-552.95,0.00023744,2]
[337178065,1725490261817,-500.0,0.00023744,2]
[337178066,1725490261827,-500.0,0.00023744,2]
[337178067,1725490261837,-500.0,0.00023744,2]
[337178068,1725490261847,-500.0,0.00023744,2]
[337178069,1725490261856,-500.0,0.00023744,2]
[337178070,1725490261866,-500.0,0.00023744,2]
[337178071,1725490261876,-523.52,0.00023744,2]
[337178072,1725490261886,-500.0,0.00023744,2]
[337178073,1725490261896,-500.0,0.00023744,2]
[337178074,1725490261906,-500.0,0.00023744,2]
[337178075,1725490261916,-500.0,0.00023744,2]
[337178076,1725490261925,-719.14,0.00023744,2]
[337178077,1725490261936,-500.0,0.00023744,2]
[337178078,1725490261946,-372.67791587,0.00023744,2]
[337178079,1725490261958,-500.0,0.00023744,2]
[337178080,1725490261969,-305.56216846,0.00023744,2]
[337178081,1725490261980,-500.0,0.00023744,2]
[337178082,1725490261991,-507.80362891,0.00023744,2]
[337178083,1725490262004,-500.0,0.00023744,2]
[337178084,1725490262015,-500.0,0.00023744,2]
[337178085,1725490262026,-500.0,0.00023744,2]
[337178086,1725490262036,-1391.81,0.00023744,2]
[337178087,1725490262048,-500.0,0.00023744,2]
[337178088,1725490262060,-500.0,0.00023744,2]
[337178089,1725490262071,-538.65,0.00023744,2]
[337178090,1725490262081,-500.0,0.00023744,2]
[337178091,1725490262092,-500.0,0.00023744,2]
[337178092,1725490262104,-500.0,0.00023744,2]
[337178093,1725490262121,-357.65214362,0.00023744,2]
[337178094,1725490262365,-500.0,0.00023744,2]
[337178095,1725490262376,-539.69503139,0.00023749,2]
[337178096,1725490262387,-308.0969551,0.00023749,2]
[337178097,1725490262398,-151.0,0.00023749,7]
[337178098,1725490262410,-500.0,0.00023749,2]
[337178099,1725490262420,-500.0,0.00023749,2]
[337178100,1725490262430,-500.0,0.00023749,2]
[337178101,1725490262439,-500.0,0.00023749,2]
[337178102,1725490262448,-500.0,0.00023749,2]
[337178103,1725490262459,-541.66266447,0.00023749,2]
[337178104,1725490262472,-500.0,0.00023749,2]
[337178105,1725490262483,-500.0,0.00023749,2]
[337178106,1725490262494,-542.57796023,0.00023749,2]
[337178107,1725490262504,-519.41851865,0.00023749,2]
[337178108,1725490262514,-500.0,0.00023749,2]
[337178109,1725490262523,-500.0,0.00023749,2]
[337178110,1725490262532,-500.0,0.00023749,2]
[337178111,1725490262542,-517.15045269,0.00023749,2]
[337178112,1725490262552,-153.87761773,0.00023749,2]
[337178113,1725490262564,-500.0,0.00023749,2]
[337178114,1725490262576,-500.0,0.00023749,2]
[337178115,1725490262587,-500.0,0.00023749,2]
[337178116,1725490262599,-500.0,0.00023749,2]
[337178117,1725490262611,-500.0,0.00023749,2]
[337178118,1725490262621,-500.0,0.00023749,2]
[337178119,1725490262633,-501.90900343,0.00023749,2]
[337178120,1725490262645,-500.0,0.00023749,2]
[337178121,1725490262655,-500.0,0.00023749,2]
[337178122,1725490262665,-500.0,0.00023749,2]
[337178123,1725490262677,-504.04601267,0.00023749,2]
[337178124,1725490262688,-500.0,0.00023749,2]
[337178125,1725490262698,-502.58819497,0.00023749,2]
[337178126,1725490262710,-500.0,0.00023749,2]
[337178127,1725490262722,-500.0,0.00023749,2]
[337178128,1725490262732,-500.0,0.00023749,2]
[337178129,1725490262742,-1250.37,0.00023749,2]
[337178130,1725490262753,-508.8859048,0.00023749,2]
[337178131,1725490262764,-500.0,0.00023749,2]
[337178132,1725490262774,-500.0,0.00023749,2]
[337178133,1725490262786,-500.0,0.00023749,2]
[337178134,1725490262796,-619.88,0.00023749,2]
[337178135,1725490262808,-500.0,0.00023749,2]
[337178136,1725490262817,-1067.83,0.00023749,2]
[337178137,1725490262826,-650.79,0.00023749,2]
[337178138,1725490262838,-561.83765899,0.00023749,2]
[337178139,1725490262848,-1797.16,0.00023749,2]
[337178140,1725490262859,-1142.19,0.00023749,2]
[337178141,1725490262868,-500.0,0.00023749,2]
[337178142,1725490262878,-279.78118654,0.00023749,2]
[337178143,1725490262887,-1004.26,0.00023749,2]
[337178144,1725490262897,-500.0,0.00023749,2]
[337178145,1725490262906,-950.32,0.00023749,2]
[337178146,1725490262916,-756.24,0.00023749,2]
[337178147,1725490262925,-1100.67,0.00023749,2]
[337178148,1725490262934,-500.0,0.00023749,2]
[337178149,1725490262943,-1035.11,0.00023749,2]
[337178150,1725490262952,-1462.98,0.00023749,2]
[337178151,1725490262962,-659.51,0.00023749,2]
[337178152,1725490262971,-500.0,0.00023749,2]
[337178153,1725490262981,-731.93,0.00023749,2]
[337178154,1725490262990,-603.8,0.00023749,2]
[337178155,1725490262999,-1669.0,0.00023749,2]
[337178156,1725490263009,-918.63,0.00023749,2]
[337178157,1725490263019,-151.0,0.00023749,7]
[337178158,1725490263029,-151.0,0.00023749,7]
[337178159,1725490263039,-1637.501268,0.00023749,7]
[337178160,1725490263049,-500.0,0.00023749,2]
[337178161,1725490263059,-1637.501268,0.00023749,7]
[337178162,1725490263068,-534.87,0.00023749,2]
[337178163,1725490263077,-1024.79,0.00023749,2]
[337178164,1725490263087,-500.0,0.00023749,2]
[337178165,1725490263096,-500.0,0.00023749,2]
[337178166,1725490263106,-500.0,0.00023749,2]
[337178167,1725490263119,-151.0,0.00023749,7]
[337178168,1725490263129,-1283.657328,0.00023749,7]
[337178169,1725490263140,-1283.657328,0.00023749,7]
[337178170,1725490263150,-500.0,0.00023749,2]
[337178171,1725490263161,-500.0,0.00023749,2]
[337178172,1725490263171,-500.0,0.00023749,2]
[337178173,1725490263181,-500.0,0.00023749,2]
[337178174,1725490263191,-12160.771809,0.0002375,2]
[337178175,1725490263201,-151.0,0.0002375,7]
[337178176,1725490263211,-2890.557888,0.0002375,7]
[337178177,1725490263221,-2890.557888,0.0002375,7]
[337178178,1725490263231,-500.0,0.00023753,2]
[337178179,1725490263242,-500.0,0.00023753,2]
[337178180,1725490263251,-2218.0,0.00023753,2]
[337178181,1725490263261,-500.0,0.00023753,2]
[337178182,1725490263271,-500.0,0.00023753,2]
[337178183,1725490263281,-1371.32,0.00023753,2]
[337178184,1725490263291,-6947.79,0.00023753,2]
[337178185,1725490263302,-3500.31,0.00023753,2]
[337178186,1725490263312,-500.0,0.00023753,2]
[337178187,1725490263322,-9104.15,0.00023753,2]
[337178188,1725490263331,-9001.37,0.00023753,2]
[337178189,1725490263342,-1449.57,0.00023753,2]
[337178190,1725490263351,-565.48,0.00023753,2]
[337178191,1725490263363,-5060.31,0.00023753,2]
[337178192,1725490263372,-1014.45,0.00023753,2]
[337178193,1725490263384,-500.0,0.00023753,2]
[337178194,1725490263398,-500.0,0.00023753,2]
[337178195,1725490263408,-1248.94,0.00023753,2]
[337178196,1725490263418,-1953.67,0.00023753,2]
[337178197,1725490263430,-5056.57,0.00023753,2]
[337178198,1725490263440,-947.9,0.00023753,2]
[337178199,1725490263450,-1085.18,0.00023753,2]
[337178200,1725490263460,-2110.89,0.00023753,2]
[337178201,1725490263470,-651.36,0.00023753,2]
[337178202,1725490263481,-742.05,0.00023753,2]
[337178203,1725490263490,-500.0,0.00023754,2]
[337178204,1725490263501,-1088.01,0.00023754,2]
[337178205,1725490263511,-500.0,0.00023754,2]
[337178206,1725490263520,-500.0,0.00023754,2]
[337178207,1725490263530,-500.0,0.00023754,2]
[337178208,1725490263540,-513.40561326,0.00023754,2]
[337178209,1725490263551,-500.0,0.00023754,2]
[337178210,1725490263561,-500.0,0.00023754,2]
[337178211,1725490263570,-500.0,0.00023754,2]
[337178212,1725490263580,-1448.87,0.00023754,2]
[337178213,1725490263591,-983.7,0.00023754,2]
[337178214,1725490263601,-500.0,0.00023754,2]
[337178215,1725490263611,-500.0,0.00023754,2]
[337178216,1725490263621,-826.19,0.00023754,2]
[337178217,1725490263632,-500.0,0.00023754,2]
[337178218,1725490263642,-500.0,0.00023754,2]
[337178219,1725490263652,-500.0,0.00023754,2]
[337178220,1725490263661,-500.0,0.00023754,2]
[337178221,1725490263670,-500.0,0.00023754,2]
[337178222,1725490263680,-500.0,0.00023754,2]
[337178223,1725490263691,-500.0,0.00023754,2]
[337178224,1725490263700,-541.84,0.00023754,2]
[337178225,1725490263711,-500.0,0.00023754,2]
[337178226,1725490263721,-500.0,0.00023754,2]
[337178227,1725490263731,-500.0,0.00023754,2]
[337178228,1725490263740,-2273.210036,0.00023754,7]
[337178229,1725490263750,-2273.210036,0.00023754,7]
[337178230,1725490263761,-500.0,0.00023754,2]
[337178231,1725490263771,-500.0,0.00023754,2]
[337178232,1725490263783,-1738.11,0.00023754,2]
[337178233,1725490263792,-3593.03,0.00023754,2]
[337178234,1725490263802,-500.0,0.00023754,2]
[337178235,1725490263813,-908.27,0.00023754,2]
[337178236,1725490263823,-524.07,0.00023754,2]
[337178237,1725490263833,-1252.18,0.00023754,2]
[337178238,1725490263844,-624.78,0.00023754,2]
[337178239,1725490263853,-504.0528641,0.00023754,2]
[337178240,1725490263863,-606.82,0.00023754,2]
[337178241,1725490263874,-1070.35,0.00023754,2]
[337178242,1725490263884,-500.0,0.00023754,2]
[337178243,1725490263894,-751.74,0.00023754,2]
[337178244,1725490263905,-673.89,0.00023754,2]
[337178245,1725490263915,-515.51,0.00023754,2]
[337178246,1725490263925,-1520.13,0.00023754,2]
[337178247,1725490263936,-515.46473338,0.00023754,2]
[337178249,1725490263946,-1221.93,0.00023754,2]
[337178250,1725490263955,-550.89,0.00023754,2]
[337178251,1725490263964,-1564.06,0.00023754,2]
[337178252,1725490263975,-1432.42,0.00023754,2]
[337178253,1725490263984,-500.0,0.00023754,2]
[337178254,1725490263995,-765.56,0.00023754,2]
[337178255,1725490264005,-1001.12,0.00023754,2]
[337178256,1725490264014,-6309.71,0.00023754,2]
[337178257,1725490264024,-500.0,0.00023754,2]
[337178259,1725490264033,-500.0,0.00023754,2]
[337178260,1725490264044,-500.0,0.00023754,2]
[337178261,1725490264054,-500.0,0.00023754,2]
[337178262,1725490264063,-1283.657328,0.00023754,7]
[337178263,1725490264073,-500.0,0.00023754,2]
[337178264,1725490264083,-1283.657328,0.00023754,7]
[337178265,1725490264094,-1380.94,0.00023754,2]
[337178266,1725490264105,-500.0,0.00023754,2]
[337178267,1725490264119,-878.73,0.00023754,2]
[337178268,1725490264129,-500.0,0.00023754,2]
[337178269,1725490264139,-999.56,0.00023754,2]
[337178270,1725490264148,-1140.42,0.00023754,2]
[337178271,1725490264159,-500.0,0.00023754,2]
[337178272,1725490264169,-500.0,0.00023754,2]
[337178273,1725490264179,-500.0,0.00023754,2]
[337178274,1725490264190,-610.83,0.00023754,2]
[337178275,1725490264205,-1314.96,0.00023754,2]
[337178276,1725490264214,-770.42,0.00023754,2]
[337178277,1725490264224,-4802.92,0.00023754,2]
[337178278,1725490264233,-500.0,0.00023755,2]
[337178279,1725490264243,-500.0,0.00023755,2]
[337178280,1725490264253,-500.0,0.00023755,2]
[337178281,1725490264262,-500.0,0.00023755,2]
[337178282,1725490264272,-515.76136767,0.00023755,2]
[337178283,1725490264282,-462.30820405,0.00023755,2]
[337178284,1725490264291,-500.0,0.00023755,2]
[337178285,1725490264301,-500.0,0.00023755,2]
[337178286,1725490264311,-500.0,0.00023755,2]
[337178287,1725490264320,-500.0,0.00023755,2]
[337178288,1725490264330,-200.0,0.00023755,2]
[337178289,1725490264339,-500.0,0.00023755,2]
[337178290,1725490264348,-500.0,0.00023755,2]
[337178291,1725490264358,-402.27725619,0.00023755,2]
[337178292,1725490264368,-500.0,0.00023755,2]
[337178293,1725490264377,-654.45,0.00023755,2]
[337178294,1725490264387,-500.0,0.00023755,2]
[337178295,1725490264396,-500.0,0.00023755,2]
[337178296,1725490264406,-500.0,0.00023755,2]
[337178297,1725490264416,-500.0,0.00023755,2]
[337178298,1725490264426,-500.0,0.00023755,2]
[337178299,1725490264436,-500.0,0.00023755,2]
[337178300,1725490264446,-500.0,0.00023755,2]
[337178301,1725490264456,-500.0,0.00023755,2]
[337178302,1725490264466,-1442.86,0.00023755,2]
[337178303,1725490264478,-500.0,0.00023755,2]
[337178304,1725490264487,-500.0,0.00023755,2]
[337178305,1725490264497,-500.0,0.00023755,2]
[337178306,1725490264508,-500.0,0.00023755,2]
[337178307,1725490264517,-500.0,0.00023755,2]
[337178308,1725490264527,-500.0,0.00023755,2]
[337178309,1725490264537,-500.0,0.00023755,2]
[337178310,1725490264547,-500.0,0.00023755,2]
[337178311,1725490264557,-521.49,0.00023755,2]
[337178312,1725490264567,-500.0,0.00023755,2]
[337178313,1725490264578,-500.0,0.00023755,2]
[337178314,1725490264590,-500.0,0.00023755,2]
[337178315,1725490264600,-502.97448036,0.00023755,2]
[337178316,1725490264610,-500.0,0.00023755,2]
[337178317,1725490264620,-500.0,0.00023755,2]
[337178318,1725490264629,-923.39,0.00023755,2]
[337178319,1725490264641,-374.24366754,0.00023755,2]
[337178320,1725490264652,-487.02210113,0.00023755,2]
[337178321,1725490264663,-500.0,0.00023755,2]
[337178322,1725490264674,-500.0,0.00023755,2]
[337178323,1725490264684,-517.12416057,0.00023755,2]
[337178324,1725490264694,-1051.91,0.00023755,2]
[337178325,1725490264705,-1782.71,0.00023755,2]
[337178326,1725490264715,-500.0,0.00023755,2]
[337178327,1725490264725,-500.0,0.00023755,2]
[337178328,1725490264735,-500.0,0.00023755,2]
[337178329,1725490264746,-628.53,0.00023755,2]
[337178330,1725490264755,-500.0,0.00023755,2]
[337178331,1725490264765,-500.0,0.00023755,2]
[337178332,1725490264775,-500.0,0.00023755,2]
[337178333,1725490264842,-500.0,0.00023755,2]
[337178334,1725490264852,-696.82,0.00023755,2]
[337178335,1725490264861,-500.0,0.00023755,2]
[337178336,1725490264871,-500.0,0.00023755,2]
[337178337,1725490264882,-570.95,0.00023755,2]
[337178338,1725490264893,-500.0,0.00023755,2]
[337178339,1725490264903,-531.57,0.00023755,2]
[337178340,1725490264914,-500.0,0.00023755,2]
[337178341,1725490264926,-500.0,0.00023755,2]
[337178342,1725490264936,-543.14,0.00023755,2]
[337178343,1725490264945,-579.07,0.00023755,2]
[337178344,1725490264955,-829.6,0.00023755,2]
[337178345,1725490264964,-500.0,0.00023755,2]
[337178346,1725490264973,-1265.79,0.00023755,2]
[337178347,1725490264982,-500.0,0.00023755,2]
[337178348,1725490264992,-604.73822318,0.00023755,2]
[337178349,1725490265001,-500.0,0.00023755,2]
[337178350,1725490265010,-1214.07,0.00023755,2]
[337178351,1725490265019,-500.0,0.00023755,2]
[337178352,1725490265029,-655.4,0.00023755,2]
[337178353,1725490265039,-500.0,0.00023755,2]
[337178354,1725490265048,-500.0,0.00023755,2]
[337178355,1725490265058,-618.08,0.00023755,2]
[337178356,1725490265067,-643.69145545,0.00023755,2]
[337178357,1725490265077,-500.0,0.00023755,2]
[337178358,1725490265086,-500.0,0.00023755,2]
[337178359,1725490265095,-500.0,0.00023755,2]
[337178360,1725490265105,-500.0,0.00023755,2]
[337178361,1725490265119,-565.13,0.00023755,2]
[337178362,1725490265128,-500.0,0.00023755,2]
[337178363,1725490265139,-500.0,0.00023755,2]
[337178364,1725490265148,-642.9,0.00023755,2]
[337178365,1725490265159,-568.28,0.00023755,2]
[337178366,1725490265168,-514.48716242,0.00023755,2]
[337178367,1725490265178,-500.0,0.00023755,2]
[337178368,1725490265189,-500.0,0.00023755,2]
[337178369,1725490265198,-638.65,0.00023755,2]
[337178370,1725490265207,-500.0,0.00023755,2]
[337178371,1725490265217,-1445.4,0.00023755,2]
[337178372,1725490265226,-183.99736,0.00023755,7]
[337178373,1725490265236,-151.0,0.00023755,7]
[337178374,1725490265246,-500.0,0.00023755,2]
[337178375,1725490265255,-500.0,0.00023755,2]
[337178376,1725490265265,-1637.501268,0.00023755,7]
[337178377,1725490265275,-2127.64,0.00023755,2]
[337178378,1725490265284,-959.99,0.00023755,2]
[337178379,1725490265294,-1637.501268,0.00023755,7]
[337178380,1725490265304,-858.87,0.00023755,2]
[337178381,1725490265314,-500.0,0.00023755,2]
[337178382,1725490265324,-500.0,0.00023755,2]
[337178383,1725490265334,-553.11,0.00023755,2]
[337178384,1725490265343,-500.0,0.00023755,2]
[337178385,1725490265353,-500.0,0.00023755,2]
[337178386,1725490265363,-500.0,0.00023755,2]
[337178387,1725490265372,-750.75,0.00023755,2]
[337178388,1725490265381,-513.85317243,0.00023755,2]
[337178389,1725490265391,-500.0,0.00023755,2]
[337178390,1725490265403,-744.12,0.00023755,2]
[337178391,1725490265413,-512.32766367,0.00023755,2]
[337178392,1725490265423,-500.0,0.00023755,2]
[337178393,1725490265433,-500.0,0.00023755,2]
[337178394,1725490265443,-500.0,0.00023755,2]
[337178395,1725490265453,-500.0,0.00023755,2]
[337178396,1725490265463,-500.0,0.00023755,2]
[337178397,1725490265473,-503.14,0.00023755,2]
[337178398,1725490265482,-500.0,0.00023755,2]
[337178399,1725490265492,-500.0,0.00023755,2]
[337178400,1725490265501,-151.0,0.00023755,7]
[337178401,1725490265511,-500.0,0.00023755,2]
[337178402,1725490265521,-500.0,0.00023755,2]
[337178403,1725490265530,-500.0,0.00023755,2]
[337178404,1725490265540,-500.0,0.00023755,2]
[337178405,1725490265549,-500.0,0.00023755,2]
[337178406,1725490265558,-534.92709385,0.00023755,2]
[337178407,1725490265568,-500.0,0.00023755,2]
[337178408,1725490265577,-500.0,0.00023755,2]
[337178409,1725490265586,-500.0,0.00023755,2]
[337178410,1725490265595,-636.98,0.00023755,2]
[337178411,1725490265604,-500.0,0.00023755,2]
[337178412,1725490265614,-500.0,0.00023755,2]
[337178413,1725490265623,-2890.557888,0.00023755,7]
[337178414,1725490265632,-2890.557888,0.00023755,7]
[337178415,1725490265642,-500.0,0.00023755,2]
[337178416,1725490265651,-500.0,0.00023755,2]
[337178417,1725490265660,-321.14849008,0.00023755,2]
[337178418,1725490265671,-518.0,0.00023755,2]
[337178419,1725490265683,-500.0,0.00023755,2]
[337178420,1725490265693,-500.0,0.00023755,2]
[337178421,1725490265704,-500.0,0.00023755,2]
[337178422,1725490265715,-513.08,0.00023755,2]
[337178423,1725490265725,-500.0,0.00023755,2]
[337178424,1725490265735,-500.0,0.00023755,2]
[337178425,1725490265746,-500.0,0.00023755,2]
[337178426,1725490265757,-1014.38,0.00023755,2]
[337178427,1725490265768,-504.20834428,0.00023755,2]
[337178428,1725490265779,-500.0,0.00023755,2]
[337178429,1725490265790,-412.98499142,0.00023755,2]
[337178430,1725490265800,-504.6806564,0.00023755,2]
[337178431,1725490265810,-500.0,0.00023755,2]
[337178432,1725490265818,-500.0,0.00023755,2]
[337178433,1725490265828,-500.0,0.00023755,2]
[337178434,1725490265837,-505.97,0.00023755,2]
[337178435,1725490265846,-500.0,0.00023755,2]
[337178436,1725490265857,-500.0,0.00023755,2]
[337178437,1725490265866,-301.30970768,0.00023765,4]
[337178438,1725490265876,-172.5948882,0.00023836,2]
[337178439,1725490265886,-153.0,0.00023836,2]
[337178440,1725490265895,-153.0,0.00023836,2]
[337178441,1725490265904,-153.0,0.00023836,2]
[337178442,1725490265915,-153.0,0.00023836,2]
[337178443,1725490265926,-153.0,0.00023836,2]
[337178444,1725490265937,-153.0,0.00023836,2]
[337178445,1725490265948,-153.0,0.00023836,2]
[337178446,1725490265959,-153.0,0.00023836,2]
[337178447,1725490265971,-153.0,0.00023836,2]
[337178448,1725490265980,-500.0,0.00023879,2]
[337178449,1725490265989,-500.0,0.00023879,2]
[337178450,1725490266001,-500.0,0.00023879,2]
[337178451,1725490266012,-500.0,0.00023879,2]
[337178452,1725490266024,-500.0,0.00023879,2]
[337178453,1725490266035,-395.13540468,0.00023879,2]
[337178454,1725490266045,-444.86523842,0.00023879,2]
[337178455,1725490266055,-500.0,0.00023879,2]
[337178456,1725490266065,-502.68432073,0.00023879,2]
[337178457,1725490266076,-500.0,0.00023879,2]
[337178458,1725490266088,-500.0,0.00023879,2]
[337178459,1725490266099,-208.70691742,0.00023879,2]
[337178460,1725490266111,-291.42441964,0.00023879,2]
[337178461,1725490266122,-500.0,0.00023879,2]
[337178462,1725490266132,-1823.83,0.00023879,2]
[337178463,1725490266142,-500.0,0.00023879,2]
[337178464,1725490266152,-500.0,0.00023879,2]
[337178465,1725490266163,-777.94,0.00023879,2]
[337178466,1725490266174,-500.0,0.00023879,2]
[337178467,1725490266183,-500.50467565,0.00023879,2]
[337178468,1725490266196,-500.0,0.00023879,2]
[337178469,1725490266207,-500.0,0.00023879,2]
[337178470,1725490266216,-471.66548102,0.00023879,2]
[337178471,1725490266226,-500.0,0.00023879,2]
[337178472,1725490266238,-500.0,0.00023879,2]
[337178473,1725490266249,-502.47923099,0.00023879,2]
[337178474,1725490266260,-505.7439484,0.00023879,2]
[337178475,1725490266270,-654.18,0.00023879,2]
[337178476,1725490266281,-815.35,0.00023879,2]
[337178477,1725490266292,-502.90360956,0.00023879,2]
[337178478,1725490266302,-500.0,0.00023879,2]
[337178479,1725490266312,-500.0,0.00023879,2]
[337178480,1725490266324,-500.0,0.00023879,2]
[337178481,1725490266336,-500.0,0.00023879,2]
[337178482,1725490266347,-500.0,0.00023879,2]
[337178483,1725490266359,-793.35,0.00023879,2]
[337178484,1725490266370,-500.0,0.00023879,2]
[337178485,1725490266379,-500.0,0.00023879,2]
[337178486,1725490266392,-557.94458638,0.00023879,2]
[337178487,1725490266401,-500.0,0.00023879,2]
[337178488,1725490266413,-500.0,0.00023879,2]
[337178489,1725490266424,-500.0,0.00023879,2]
[337178490,1725490266433,-500.0,0.00023879,2]
[337178491,1725490266442,-500.0,0.00023879,2]
[337178492,1725490266452,-500.0,0.00023879,2]
[337178493,1725490266462,-501.95887824,0.00023879,2]
[337178494,1725490266471,-500.0,0.00023879,2]
[337178495,1725490266482,-500.0,0.00023879,2]
[337178496,1725490266491,-545.90712435,0.00023879,2]
[337178497,1725490266501,-500.0,0.00023879,2]
[337178498,1725490266510,-500.0,0.00023879,2]
[337178499,1725490266520,-500.0,0.00023879,2]
[337178500,1725490266530,-500.0,0.00023879,2]
[337178501,1725490266539,-377.88397423,0.00023879,2]
[337178502,1725490266548,-500.0,0.00023879,2]
[337178503,1725490266557,-500.0,0.00023879,2]
[337178504,1725490266567,-500.0,0.00023879,2]
[337178505,1725490266576,-509.63,0.00023879,2]
[337178506,1725490266585,-500.0,0.00023879,2]
[337178507,1725490266594,-500.0,0.00023879,2]
[337178508,1725490266604,-500.0,0.00023879,2]
[337178509,1725490266613,-970.28,0.00023879,2]
[337178510,1725490266624,-487.12862331,0.00023879,2]
[337178511,1725490266634,-500.0,0.00023879,2]
[337178512,1725490266646,-500.0,0.00023879,2]
[337178513,1725490266656,-500.0,0.00023879,2]
[337178514,1725490266667,-500.0,0.00023879,2]
[337178515,1725490266679,-500.0,0.00023879,2]
[337178516,1725490266690,-529.98049037,0.00023879,2]
[337178517,1725490266699,-500.0,0.00023879,2]
[337178518,1725490266709,-500.0,0.00023879,2]
[337178519,1725490266720,-500.0,0.00023879,2]
[337178520,1725490266731,-1145.34,0.00023879,2]